Cogmind - Beta 15 @@@ ROGUE MODE // 2025.05.26 @ 18:57:54 Player: Rubbe Result: Destroyed by B-75 Beast with Magnetic Acceleration Cannon Performance ------------- Evolutions (1) 500 Regions Visited (5) 1000 Robots Destroyed (30) 150 Value Destroyed (825) 825 Prototype IDs (2) 40 Alien Tech Used (0) 0 Bonus (680) 680 TOTAL SCORE: 3195 Bonus ------- Follower Combat Kills 80 Met Imprinter 300 Was Imprinted 300 Cogmind --------- Core Integrity 0/400 Matter 300/300 Energy 250/250 System Corruption 0% Temperature Cool (0) Movement Core (850) Ox16 Location -6/Proximity Caves Parts ------- > --- POWER (1) -------- Ion Engine > --- PROPULSION (3) --- (None) > --- UTILITY (3) ------ High-capacity Storage Unit Signal Interpreter > --- WEAPON (2) ------- Improved Assault Rifle Improved Assault Rifle > --- INVENTORY (20) --- Light Ion Engine Improved Deuterium Engine Improved Deuterium Engine Aluminum Leg Xenon Bombardment Thruster Visual Processing Unit Seismic Detector Improved Targeting Computer EM Pulse Gun Heavy Riot Gun Plasma Cannon Improved Assault Rifle Barrage Gun KE Penetrator Grenade Launcher Rocket Launcher CPS Tube (2) Peak State ------------ > --- POWER ------------ Ion Engine > --- PROPULSION ------- Aluminum Leg Aluminum Leg Makeshift Leg > --- UTILITY ---------- High-capacity Storage Unit Weight Redist. System Signal Interpreter > --- WEAPON ----------- Assault Rifle Flak Cannon > --- INVENTORY -------- Ion Engine Light Ion Engine Improved Deuterium Engine Aluminum Leg Aluminum Leg Xenon Bombardment Thruster Visual Processing Unit Seismic Detector Improved Targeting Computer EM Pulse Gun Heavy Riot Gun Gatling Laser Plasma Cannon Improved Assault Rifle Improved Assault Rifle Improved Assault Rifle KE Penetrator Grenade Launcher Rocket Launcher CPS Tube [Rating: 20] Favorites ----------- Power Ion Engine Engine Ion Engine Propulsion Aluminum Leg Treads Armored Treads Leg Aluminum Leg Utility Signal Interpreter Device Weight Redist. System Storage High-capacity Storage Unit Processor Signal Interpreter Weapon Assault Rifle Energy Gun Medium Laser Ballistic Gun Assault Rifle Ballistic Cannon Flak Cannon Launcher Grenade Launcher Build | -11 -10 -9 -9 -7 -6 ------- Run | Yrd Mat Mat Min Zio Pro Slots Evolved 2 | . . 2 . . . Power . | . . . . . . Propulsion 1 | . . 1 . . . Utility 1 | . . 1 . . . Weapon . | . . . . . . Parts Attached 33 | 5 6 9 6 2 5 Power 3 | 1 1 . . . 1 Engine 3 | 1 1 . . . 1 Core . | . . . . . . Reactor . | . . . . . . Propulsion 12 | 2 2 3 3 1 1 Treads 1 | . . . . . 1 Leg 11 | 2 2 3 3 1 . Wheel . | . . . . . . Hover . | . . . . . . Flight . | . . . . . . Utility 5 | 1 1 3 . . . Device 2 | . 1 1 . . . Storage 2 | 1 . 1 . . . Processor 1 | . . 1 . . . Hackware . | . . . . . . Protection . | . . . . . . Artifact . | . . . . . . Weapon 13 | 1 2 3 3 1 3 Energy Gun 6 | 1 2 . 2 . 1 Energy Cannon . | . . . . . . Ballistic Gun 4 | . . 1 1 . 2 Ballistic Cannon 2 | . . 1 . 1 . Launcher 1 | . . 1 . . . Special Weapon . | . . . . . . Impact Weapon . | . . . . . . Slashing Weapon . | . . . . . . Piercing Weapon . | . . . . . . Special Melee Weapon . | . . . . . . Unidentified Prototypes 1 | . . 1 . . . Parts Lost 14 | . 1 1 4 . 8 Power 1 | . . . . . 1 Propulsion 5 | . . . 2 . 3 Utility 2 | . . 1 . . 1 Weapon 6 | . 1 . 2 . 3 Highest Loss Streak 8 | . 1 1 4 . 8 To Critical Strikes . | . . . . . . Average Backups 14 | 2 7 10 15 17 17 Power 1 | . 1 1 2 2 2 Propulsion 2 | . 1 2 2 2 2 Utility 1 | . . 1 2 2 3 Weapon 7 | 1 3 4 9 9 8 Tool/Special . | . . . . . . Unused Backups 17 | . 1 . 2 . 14 Power 3 | . . . . . 3 Propulsion 3 | . 1 . 1 . 1 Utility 4 | . . . 1 . 3 Weapon 6 | . . . . . 6 Tool/Special 1 | . . . . . 1 Average Slot Usage (%) 94 | . 90 96 99 100 72 Engine 11 | . 14 11 11 11 9 Leg 28 | . 28 33 32 33 10 Device 9 | . 7 8 11 11 3 Storage 11 | . 14 11 11 11 11 Processor 9 | . . 10 11 11 11 Energy Gun 6 | . 25 13 21 . . Ballistic Gun 8 | . . . . 11 17 Ballistic Cannon 7 | . . 7 . 11 4 Peak Build Rating 20 | 5 7 13 12 19 20 Average Rating 12 | 4 6 10 11 14 16 On Entrance 9 | . 5 7 12 12 19 Naked Turns . | . . . . . . Heaviest Build 53 | 10 15 50 50 53 53 Greatest Support 46 | 20 20 36 36 46 46 Greatest Overweight (x) 15 | . . 1 1 1 15 Average Overweight (x) . | . . . 1 1 2 Largest Inventory Capacity 20 | 8 8 20 20 20 20 Average Capacity 18 | 7 8 19 20 20 20 Most Carried 20 | 4 8 16 18 20 20 Average Carried 14 | 2 7 10 15 17 17 Final Capacity 20 | 8 8 20 20 20 20 Final Carried 20 | 3 8 16 14 20 17 Class Distribution -------------------- 100% | Mutant Dominant Class ---------------- Mutant | -10/Materials Mutant | -9/Materials Mutant | -9/Mines Mutant | -7/Zion Mutant | -6/Proximity Caves Resources | -11 -10 -9 -9 -7 -6 ----------- Run | Yrd Mat Mat Min Zio Pro Matter Collected 775 | 250 50 159 . 162 154 Remotely . | . . . . . . Salvage Created 1020 | 125 377 218 109 46 145 Parts 53 | 4 27 12 5 1 4 Haulers Intercepted 2 | . 1 1 . . . Recyclers Shooed 2 | 1 . 1 . . . Parts Field Recycled . | . . . . . . Retrieved Matter . | . . . . . . Parts Self-Destructed 18 | . . . . 1 17 Prevented . | . . . . . . Kills | -11 -10 -9 -9 -7 -6 ------- Run | Yrd Mat Mat Min Zio Pro Combat Hostiles Destroyed 22 | . 6 8 2 1 5 Guns 14 | . 6 3 2 . 3 Cannons 4 | . . 1 . 1 2 AOE 4 | . . 4 . . . Classes Destroyed 9 | 2 4 2 . 1 . Builder 2 | . 2 . . . . Tunneler 1 | 1 . . . . . Hauler 2 | . 1 1 . . . Recycler 1 | 1 . . . . . Watcher 2 | . 2 . . . . Swarmer 6 | . . 4 . . 2 Grunt 14 | . 6 3 2 . 3 Sentry 1 | . . 1 . . . Hunter 1 | . . . . 1 . Best Kill Streak 4 | 1 4 4 2 1 3 Combat Bots Only 4 | . 3 4 2 1 3 Max Kills in Single Turn 2 | 1 1 2 1 1 2 Gunslinging . | . . . . . . Exploded 2 | . . 2 . . . Melee . | . . . . . . Uniques/NPCs Destroyed . | . . . . . . Combat | -11 -10 -9 -9 -7 -6 -------- Run | Yrd Mat Mat Min Zio Pro Hostile Shots Fired 215 | . 50 33 27 . 105 Missed 60 | . 11 11 7 . 31 Hits 155 | . 39 22 20 . 74 Projectile 155 | . 39 22 20 . 74 Critical Strikes 4 | . . . . . 4 Damage Taken 2304 | . 465 279 292 . 1268 Core 515 | . 101 36 29 . 349 Absorbed by Shields . | . . . . . . Regen/Repaired (Parts) 146 | . . . . 146 . Core Remaining (%) 79 | 100 59 . . . . Volleys Fired 108 | 12 36 23 11 5 21 Largest 2 | 1 2 2 2 2 2 Hottest 117 | 50 100 100 100 57 117 Shots Fired 187 | 12 68 40 21 10 36 Gun 160 | 12 68 32 21 5 22 Cannon 25 | . . 6 . 5 14 Launcher 2 | . . 2 . . . Special . | . . . . . . Kinetic 50 | . . 6 . 10 34 Thermal 123 | 12 68 32 9 . 2 Explosive 2 | . . 2 . . . Electromagnetic 12 | . . . 12 . . Robot Hit Streak 10 | 4 10 8 5 3 7 Robot Miss Streak 4 | 2 4 2 3 4 4 Penetration Max . | . . . . . . Secondary Targets 3 | . 1 . 1 . 1 Max Gunslinging Chain 1 | . 1 . 1 . 1 Shots Hit Robots 111 | 7 37 29 9 2 27 Core Hits 65 | 1 21 14 4 1 24 Critical Kills . | . . . . . . Critical Parts Destroyed . | . . . . . . Critical Strikes 8 | 2 2 4 . . . Burn 7 | 2 2 3 . . . Blast 1 | . . 1 . . . Melee Attacks . | . . . . . . Impact . | . . . . . . Slashing . | . . . . . . Piercing . | . . . . . . Sneak Attacks . | . . . . . . Combat Hostiles . | . . . . . . Follow-up Attacks . | . . . . . . Damage Inflicted 1932 | 97 451 680 121 17 566 Guns 1279 | 97 451 322 121 9 279 Cannons 382 | . . 87 . 8 287 Explosions 271 | . . 271 . . . Melee . | . . . . . . Ramming . | . . . . . . Kinetic 627 | . . 87 . 17 523 Thermal 938 | 97 451 322 25 . 43 Explosive 271 | . . 271 . . . Electromagnetic 96 | . . . 96 . . Impact . | . . . . . . Slashing . | . . . . . . Piercing . | . . . . . . Highest Corruption . | . . . . . . Average Corruption . | . . . . . . Corruption Purged . | . . . . . . Corruption Blocked . | . . . . . . Overload Shots . | . . . . . . Overflow Damage 4 | . . 4 . . . Projectiles . | . . . . . . Explosions 4 | . . 4 . . . Melee . | . . . . . . Knockbacks 14 | . . 1 . . 13 Impact . | . . . . . . Kinetic 13 | . . 1 . . 12 Secondary 1 | . . . . . 1 Self-Inflicted Damage 42 | . . 42 . . . Shots 2 | . . 2 . . . Rammed . | . . . . . . Targets Rammed . | . . . . . . Kicked . | . . . . . . Crushed . | . . . . . . Highest Temperature 475 | 70 475 260 282 . 161 Average Temperature 120 | 32 148 95 175 . 73 Received Heat Transfer 1038 | . 261 69 159 . 549 Effects 7 | . 4 3 . . . Shutdowns 2 | . 2 . . . . Energy Bleed 1 | . 1 . . . . Interference 3 | . . 3 . . . Damage (minor) 1 | . 1 . . . . Siege Activations . | . . . . . . Martial Activations . | . . . . . . Shielding Activations . | . . . . . . Robots Disrupted . | . . . . . . Combat Hostiles . | . . . . . . Robots Corrupted . | . . . . . . Combat Hostiles . | . . . . . . Parts Fried 1 | . . . 1 . . Impact Corruptions . | . . . . . . Robots Melted 1 | 1 . . . . . Combat Hostiles . | . . . . . . Parts Melted 12 | 2 4 4 . . 2 Heat Transferred 3164 | 444 1362 1184 74 . 100 Parts Sabotaged . | . . . . . . Parts Stolen . | . . . . . . Parts Stripped . | . . . . . . Power Chain Reactions . | . . . . . . Alert | -11 -10 -9 -9 -7 -6 ------- Run | Yrd Mat Mat Min Zio Pro Maximum Alert Level . | . . . . . . Low Security (%) 100 | 100 100 100 100 . . Level 1 . | . . . . . . Level 2 . | . . . . . . Level 3 . | . . . . . . Level 4 . | . . . . . . Level 5 . | . . . . . . High Security . | . . . . . . Max Security . | . . . . . . Peak Influence 99 | 5 67 99 30 . . Initial 20 | . . 16 20 . . Average 21 | . 22 35 5 . . Influence Increases 711 | 10 182 231 50 28 210 Destroy 0b10 Robot/C 520 | . 120 160 40 20 180 Destroy 0b10 Robot/NC 40 | 10 25 5 . . . Destroy Leader 98 | . 36 42 10 . 10 Allied During Kill 28 | . . . . 8 20 Destroy Structure 10 | . 1 9 . . . Partial Spotted 15 | . . 15 . . . Influence Decreases 711 | 10 141 219 103 28 210 Entered New Map 58 | . . 25 33 . . Time Decay 533 | 10 131 188 60 28 116 Lost Part 76 | . 10 6 10 . 50 Lost Ally 44 | . . . . . 44 Squads Dispatched 6 | . 3 2 . . 1 Investigation 2 | . . 1 . . 1 Extermination . | . . . . . . Reinforcement 4 | . 3 1 . . . Assault . | . . . . . . Garrison . | . . . . . . Intercept . | . . . . . . Searches Triggered . | . . . . . . Construction Impeded . | . . . . . . Haulers Reinforced . | . . . . . . Active Scanning Responses . | . . . . . . Cargo Convoy Interrupts . | . . . . . . Stealth | -11 -10 -9 -9 -7 -6 --------- Run | Yrd Mat Mat Min Zio Pro Distress Signals . | . . . . . . Communications Jammed . | . . . . . . Distress Signals . | . . . . . . Times Spotted 37 | . 13 9 2 1 12 Peak Tracking Total 6 | . 4 4 2 1 6 Tactical Retreats . | . . . . . . Traps | -11 -10 -9 -9 -7 -6 ------- Run | Yrd Mat Mat Min Zio Pro Traps Triggered 2 | . . 2 . . . Indirectly . | . . . . . . Trap Hack Attempts . | . . . . . . Triggered . | . . . . . . Disarmed . | . . . . . . Reprogrammed . | . . . . . . Reused . | . . . . . . Traps Extracted . | . . . . . . Installed . | . . . . . . Triggered . | . . . . . . Machines | -11 -10 -9 -9 -7 -6 ---------- Run | Yrd Mat Mat Min Zio Pro Machines Disabled . | . . . . . . Max in Single Turn . | . . . . . . Machines Repaired . | . . . . . . Machines Dismantled . | . . . . . . Machines Sabotaged . | . . . . . . Overloaded Fab Kills . | . . . . . . Hacking | -11 -10 -9 -9 -7 -6 --------- Run | Yrd Mat Mat Min Zio Pro Machines Accessed 6 | . 3 2 . . 1 Terminals 5 | . 2 2 . . 1 Fabricators . | . . . . . . Repair Stations . | . . . . . . Recycling Units 1 | . 1 . . . . Scanalyzers . | . . . . . . Garrison Access . | . . . . . . Total Hacks 10 | . 3 4 . . 3 Successful 9 | . 3 3 . . 3 Failed 1 | . . 1 . . . Catastrophic . | . . . . . . Database Lockouts . | . . . . . . Manual . | . . . . . . Terminals 9 | . 2 4 . . 3 Fabricators . | . . . . . . Repair Stations . | . . . . . . Recycling Units 1 | . 1 . . . . Scanalyzers . | . . . . . . Garrison Access . | . . . . . . Terminal Hacks 8 | . 2 3 . . 3 Record 6 | . . 3 . . 3 Branch Access Points 1 | . 1 . . . . Zone Layout 1 | . 1 . . . . Fabricator Hacks . | . . . . . . Repair Station Hacks . | . . . . . . Recycling Unit Hacks 1 | . 1 . . . . Report Inventory 1 | . 1 . . . . Scanalyzer . | . . . . . . Garrison Access Hacks . | . . . . . . Unauthorized Hacks . | . . . . . . Terminals . | . . . . . . Fabricators . | . . . . . . Repair Stations . | . . . . . . Recycling Units . | . . . . . . Scanalyzers . | . . . . . . Garrison Access . | . . . . . . Data Cores Recovered . | . . . . . . Used . | . . . . . . Hacking Detections 2 | . . 1 . . 1 Full Trace Events 1 | . . . . . 1 Feedback Events . | . . . . . . Feedback Blocked . | . . . . . . Robot Schematics Acquired 2 | . . . . 2 . Robots Built . | . . . . . . Authchips . | . . . . . . Time . | . . . . . . Total Robot Build Rating . | . . . . . . Part Schematics Acquired 16 | . . . . 16 . Parts Built . | . . . . . . Authchips . | . . . . . . Time . | . . . . . . Total Part Build Rating . | . . . . . . Parts Repaired . | . . . . . . Time . | . . . . . . Parts Recycled . | . . . . . . Recycled Matter . | . . . . . . Retrieved Matter . | . . . . . . Retrieved Components . | . . . . . . Parts Scanalyzed . | . . . . . . Part Schematics Acquired . | . . . . . . Parts Damaged . | . . . . . . Bothacking | -11 -10 -9 -9 -7 -6 ------------ Run | Yrd Mat Mat Min Zio Pro Used RIF Installer . | . . . . . . Robots Hacked . | . . . . . . Non-combat . | . . . . . . Combat . | . . . . . . Robot Hacks Applied . | . . . . . . Relay Couplers Released . | . . . . . . Fabnet Peak Effective % . | . . . . . . Robots Rewired . | . . . . . . Allies Hacked . | . . . . . . Hacks Repelled . | . . . . . . Allies | -11 -10 -9 -9 -7 -6 -------- Run | Yrd Mat Mat Min Zio Pro Total Allies 4 | . . . . 4 . Largest Group 4 | . . . . 4 3 Highest-Rated Group 153 | . . . . 153 116 Highest-Rated Ally 41 | . . . . 41 41 Total Orders . | . . . . . . Ally Attacks 13 | . . . . . 13 Total Damage 234 | . . . . . 234 Kills 4 | . . . . . 4 Allies Corrupted . | . . . . . . Allies Melted . | . . . . . . Intel | -11 -10 -9 -9 -7 -6 ------- Run | Yrd Mat Mat Min Zio Pro Active Infowar (turns) 256 | . 235 21 . . . Terrain 256 | . 235 21 . . . Robot Analysis Total . | . . . . . . Derelict Logs Recovered 1 | . . . . 1 . Drone Launches . | . . . . . . Drone Recoveries . | . . . . . . Exploration | -11 -10 -9 -9 -7 -6 ------------- Run | Yrd Mat Mat Min Zio Pro Turns Passed 3780 | 117 431 463 277 1937 555 Spaces Moved 1756 | 71 245 159 121 992 168 Core 16 | 9 . . . . 7 Treads 86 | . . . . . 86 Legs 1654 | 62 245 159 121 992 75 Wheels . | . . . . . . Hover . | . . . . . . Flight . | . . . . . . Fastest Speed 50 | 50 120 120 190 190 196 Average Speed 186 | 111 120 183 190 190 289 Slowest Speed 800 | 120 120 190 190 196 800 Overloaded Moves . | . . . . . . Propulsion Burnouts . | . . . . . . Robots Hopped . | . . . . . . Potential Cave-ins . | . . . . . . Cave-ins Triggered . | . . . . . . Exploration Rate (%) 36 | 5 53 19 30 84 28 Regions Visited 5 Branch Regions 3 Pre-discovered Areas 4 | . . . . 4 . Known Exits Taken 3 | . . 1 1 1 . Unknown Exits Taken 2 | 1 1 . . . . Scrap Searched 5 | . . . . 4 1 Spaces Dug . | . . . . . . Terrain Destroyed 8 | . . 8 . . . Melee . | . . . . . . Projectile . | . . . . . . AOE 8 | . . 8 . . . Terrain Rammed . | . . . . . . Walls Destroyed . | . . . . . . Machines Disabled . | . . . . . . Actions | -11 -10 -9 -9 -7 -6 --------- Run | Yrd Mat Mat Min Zio Pro Total 2079 | 97 315 288 147 1028 204 Wait 113 | . 13 80 2 18 . Move 1751 | 70 244 158 120 991 168 Hop . | . . . . . . Pick Up 52 | 9 12 14 4 7 6 Fast Attach . | . . . . . . Attach 22 | 5 3 5 4 . 5 Detach . | . . . . . . Swap 19 | . 3 6 4 6 . Drop 14 | 1 4 2 2 1 4 Fire 108 | 12 36 23 11 5 21 Melee . | . . . . . . Ram . | . . . . . . Kick . | . . . . . . Crush . | . . . . . . Escape Stasis . | . . . . . . Rewire . | . . . . . . Trap . | . . . . . . Miscellaneous . | . . . . . . Route ------- -11/Scrapyard -10/Materials (discovered 3 exits: *Mat / *Min x2) -9/Materials -9/Mines (discovered 2 exits: [*Mat] / *Zio) -7/Zion -6/Proximity Caves History --------- Turn | Location | Event 6 | -11/Scrapyard | Discovered new exit (range 16) 118 | -11/Scrapyard | Entered Materials 184 | -10/Materials | Identified exit to Mines 301 | -10/Materials | Build established: Mutant 521 | -10/Materials | Discovered new exit (range 16) 549 | -10/Materials | Entered another Materials area 549 | -9/Materials | Evolved 2 slots: Propulsion x1, Utility x1 991 | -9/Materials | Discovered new exit (range 12) 1010 | -9/Materials | Identified exit to Mines 1012 | -9/Materials | Entered Mines 1028 | -9/Mines | Met a Derelict bent on vengeance 1088 | -9/Mines | Received a Rocket Launcher from a helpful Derelict 1251 | -9/Mines | Lost 4 parts (2n2w) 1285 | -9/Mines | A Derelict revealed a hidden shortcut to a safe place 1288 | -9/Mines | Identified exit to Zion 1289 | -9/Mines | Discovered new exit (range 3) 1289 | -9/Mines | Entered Zion 1448 | -7/Zion | Acquired unknown access codes intercepted by a Zionite 1891 | -7/Zion | Met Imprinter 1972 | -7/Zion | Imprinted 1974 | -7/Zion | Declared Zion's savior 2257 | -7/Zion | Learned location of Data Miner (-6) 2289 | -7/Zion | Learned location of Warlord (-5) 2454 | -7/Zion | Learned Factory emergency access door positions 2967 | -7/Zion | Visited the Megawrench Repair Shop 2967 | -7/Zion | Megawrench repaired 7 parts 3195 | -7/Zion | Discovered new exit (range 16) 3222 | -7/Zion | Identified exit to Proximity Caves 3226 | -7/Zion | Entered Proximity Caves 3226 | -6/Proximity Caves | Accompanied by 3 allies 3366 | -6/Proximity Caves | Attracted the attention of an 0b10 base 3411 | -6/Proximity Caves | Core integrity fell below 50% 3419 | -6/Proximity Caves | Core integrity fell below 20% 3455 | -6/Proximity Caves | Lost 8 parts (1p3n1u3w) 3765 | -6/Proximity Caves | Spotted B-75 Beast 3781 | -6/Proximity Caves | Destroyed by B-75 Beast with Magnetic Acceleration Cannon Last Messages --------------- Broken Lgt. Angular Momentum Engine fries itself beyond repair. Carbon-fiber Leg fries itself beyond repair. Acquired Barrage Gun. Acquired 109 matter. Acquired Arm. Treads. Acquired 20 matter. Acquired 2 matter. Acquired Imp. Deuterium Engine. Connecting with Outpost Terminal... >>Query(Status Report 517B) UNEVENTFUL CYCLE. >>Query(Status Report 013L) INTERCEPTED DERELICT CONTRABAND. >>Query(Status Report 579X) INTERCEPTED DERELICT INTEL. Data stored: Proximity Caves entrances (x1). ALERT: Suspicious activity at Terminal P001. Dispatching Investigation squad. Arm. Treads blasted off. Map ----- +----------------------------------------------------+ | ##### ##?## ######## ##???????????????????????? | | ### ## #???????????????????????? | | #???????????????????????? | | #### ##?###???????????????????? | | """# ## ##?## ##??????????????????? | | """# ###### ##?# #??????????????????? | | """# #????# #?# #??????????????????? | | """# #???# ### #??????????????????? | | # # #??# #??????????????????? | | "# ## #??# ##?????????????????? | | %"# ## #??## #????????? #??????? | | "# ## #???### ###????? #??????? | | %"# # #?????####### #### ##?????? | | #+## # #?????##????## #?????? | | ## ##???### ?????# #?? | | ### ##????# ###### #### #?? | | ## ### #?????# ## #????? ??? | | #?# #??????# ####??????? ??? | | ##??# ???????## ##???????????? ???? | | ##???????????????# #???????????????????? | | ##????????????????# #???????????????????? | | ###?????????????????# #???????????????????? | | ##???????????????????## ##???????????????????? | | #?????????????????????##% ##????????????????????? | | #???# ???????## #?????????????????????? | | #??# ##;@ #?????????????????????? | | #?? ; ; #?????????????????????? | | ## ?????# BB ;;# #?????????????????????? | | ?? ????# BB ;; %#?????????????????????? | | ?? #####????# #?????????????????????? | | ??? #????????# ??????????????????? | | ??? #????????##### ??????????????? | | ????? #????????????## #;# #????????????? | | ?????? ?????????????# #### #????????????? | | ????????????????????####???? ???????????? | | ???????????????????????????? ######??????????? | | ???????????????????????????? #???????????????? | | ????????????????????????????? #???????????????? | | ????????????????????????????? ???????????????? | | ????????????????????????????? #??????????????? | | ??????????????????????????????? ##??????????????? | | ????????????????????????????????##???????????????? | | ?????????????????????????????????????????????????? | | ?????????????????????????????????????????????????? | | ?????????????????????????????????????????????????? | | ?????????????????????????????????????????????????? | | ?????????????????????????????????????????????????? | | ?????????????????????????????????????????????????? | | ?????????????????????????????????????????????????? | | ?????????????????????????????????????????????????? | +----------------------------------------------------+ Best States ------------- Heat Dissipation 28 Energy Generation 10 Energy Capacity 250 Matter Stores 300 Matter Capacity 300 Sight Range 16 Terrain Scan Range 14 Terrain Scan Density 10 Additional Mass Support 6 Evasion (%) 55 Recoil Reduction 1 Item Schematics ----------------- Adv. Heat Sink | -7/Zion | Archive Adv. ECM Suite | -7/Zion | Archive Neutrino Core | -7/Zion | Archive Adv. System Restoration Module | -7/Zion | Archive Adv. Terrain Scan Processor | -7/Zion | Archive Fusion Compressor | -7/Zion | Archive Recalibrator | -7/Zion | Archive Flexi-carbon Leg | -7/Zion | Archive Gravmag System | -7/Zion | Archive Hyp. Gauss Rifle | -7/Zion | Archive Component Analysis Suite | -7/Zion | Archive Med. Reactive Plating | -7/Zion | Archive Power Amplifier | -7/Zion | Archive Plasma Rifle | -7/Zion | Archive Hvy. Rocket Launcher | -7/Zion | Archive Lrn. Phase Cannon | -7/Zion | Archive Robot Schematics ------------------ R-06 Scavenger | -7/Zion | Archive T-07 Excavator | -7/Zion | Archive Fabricated ------------ Nothing Repaired ---------- Nothing Alien Tech Used ----------------- None Achievements -------------- None Challenges ------------ None Game ------ Seed ChargeGravmagBroadsword Manual? 0 Play Time 00:27:26 Cumulative 11.0 hours Start 2025.05.17 @ 21:20:22 End 2025.05.26 @ 18:57:54 Sessions 2 Manual Loads 0 Difficulty Rogue Special Mode None Game No. 43 Rogue 43 Adventurer 0 Explorer 0 Win Type - Total 0 Types 0/0/0/0/0/0/0/0/0/0 Lore% 7 Gallery% 17 Achievement% 18 Wizard Run 0 Options --------- Layout 1 ASCII 0 Keyboard 0 Movement Mouse Keybinds 0 Fullscreen 1 Font 24/Smallcaps Map View 50x35 Zoom Use 0% Tactical HUD 0 Map Filters NONE Filters NONE Steam 1 RUN: afa38a67-2a9b-4f23-bb3f-ece41a2a0df0